Cogmind - Beta 15 @@@ ROGUE MODE // 2025.05.14 @ 02:10:38 Player: celerysam Result: Destroyed by 90-ETY(E) with Overtuned Barrage Gun Performance ------------- Evolutions (0) 0 Regions Visited (3) 600 Robots Destroyed (16) 80 Value Destroyed (488) 488 Prototype IDs (6) 120 Alien Tech Used (0) 0 Bonus (300) 300 TOTAL SCORE: 1588 Bonus ------- Registered with UFD 300 Cogmind --------- Core Integrity 0/250 Matter 257/300 Energy 100/100 System Corruption 0% Temperature Cool (0) Movement Core (450) Ox8 Location -9/Scraptown Parts ------- > --- POWER (1) -------- (None) > --- PROPULSION (2) --- (None) > --- UTILITY (2) ------ Large Storage Unit Hardened Light Armor Plating > --- WEAPON (2) ------- (None) > --- INVENTORY (15) --- Active Sensor Suite Peak State ------------ > --- POWER ------------ Light Angular Momentum Engine > --- PROPULSION ------- Flexi-carbon Leg Armored Leg > --- UTILITY ---------- Large Storage Unit Hardened Light Armor Plating > --- WEAPON ----------- Battle Rifle Battle Cannon > --- INVENTORY -------- SUBCON Basin [Rating: 40] Favorites ----------- Power Light Angular Momentum Engine Engine Light Angular Momentum Engine Power Core Light Fission Core Propulsion Subdweller Monowheel Treads Light Treads Leg Aluminum Leg Wheel Subdweller Monowheel Utility Large Storage Unit Device Seismic Detector Storage Large Storage Unit Protection Hardened Light Armor Plating Weapon Battle Cannon Energy Gun Subdweller Laser Ballistic Gun Battle Rifle Ballistic Cannon Battle Cannon Launcher Grenade Launcher Build | -11 -10 -10 -9 ------- Run | Yrd Mat Sub Scr Slots Evolved . | . . . . Power . | . . . . Propulsion . | . . . . Utility . | . . . . Weapon . | . . . . Parts Attached 34 | 6 3 18 7 Power 8 | 1 . 4 3 Engine 7 | 1 . 4 2 Core 1 | . . . 1 Reactor . | . . . . Propulsion 13 | 2 2 6 3 Treads 2 | . . 2 . Leg 4 | 2 . . 2 Wheel 7 | . 2 4 1 Hover . | . . . . Flight . | . . . . Utility 4 | 1 1 1 1 Device 1 | . . 1 . Storage 2 | 1 1 . . Processor . | . . . . Hackware . | . . . . Protection 1 | . . . 1 Artifact . | . . . . Weapon 9 | 2 . 7 . Energy Gun 4 | . . 4 . Energy Cannon . | . . . . Ballistic Gun 3 | 2 . 1 . Ballistic Cannon 1 | . . 1 . Launcher 1 | . . 1 . Special Weapon . | . . . . Impact Weapon . | . . . . Slashing Weapon . | . . . . Piercing Weapon . | . . . . Special Melee Weapon . | . . . . Unidentified Prototypes . | . . . . Parts Lost 9 | . . 9 . Power 3 | . . 3 . Propulsion 4 | . . 4 . Utility . | . . . . Weapon 2 | . . 2 . Highest Loss Streak 2 | . . 2 . To Critical Strikes 1 | . . 1 . Average Backups 2 | 4 8 6 . Power . | . 1 . . Propulsion . | 3 4 2 . Utility . | . 1 1 . Weapon . | . 1 2 . Tool/Special . | . . . . Unused Backups 4 | . . 4 . Power . | . . . . Propulsion 1 | . . 1 . Utility 1 | . . 1 . Weapon 1 | . . 1 . Tool/Special 1 | . . 1 . Average Slot Usage (%) 94 | . 85 87 99 Engine 13 | . 14 12 13 Treads 1 | . . 4 . Wheel 24 | . 25 21 26 Device 3 | . . 7 2 Storage 14 | . 14 14 14 Protection 6 | . . . 11 Energy Gun 2 | . . 7 . Ballistic Gun 13 | . 28 10 13 Ballistic Cannon 11 | . . 9 13 Peak Build Rating 40 | 6 7 30 40 Average Rating 26 | 4 6 19 33 On Entrance 10 | . 6 7 30 Naked Turns . | . . . . Heaviest Build 39 | 13 28 33 39 Greatest Support 40 | 20 32 40 36 Greatest Overweight (x) 12 | . . 10 12 Average Overweight (x) 3 | . . . 8 Largest Inventory Capacity 15 | 8 15 15 15 Average Capacity 14 | 6 14 15 15 Most Carried 15 | 6 11 15 15 Average Carried 14 | 5 9 14 14 Final Capacity 15 | 8 15 15 15 Final Carried 15 | 6 11 15 3 Class Distribution -------------------- 100% | Mutant Dominant Class ---------------- Mutant | -10/Materials Mutant | -10/Subcaves Mutant | -9/Scraptown Resources | -11 -10 -10 -9 ----------- Run | Yrd Mat Sub Scr Matter Collected 744 | 229 77 316 122 Remotely . | . . . . Salvage Created 559 | . 59 500 . Parts 37 | . 3 34 . Haulers Intercepted 1 | . 1 . . Recyclers Shooed . | . . . . Parts Field Recycled . | . . . . Retrieved Matter . | . . . . Parts Self-Destructed 16 | . . 16 . Prevented . | . . . . Kills | -11 -10 -10 -9 ------- Run | Yrd Mat Sub Scr Combat Hostiles Destroyed 15 | . . 15 . Guns 12 | . . 12 . Cannons 2 | . . 2 . AOE 1 | . . 1 . Classes Destroyed 5 | . 1 4 . Hauler 1 | . 1 . . Swarmer 4 | . . 4 . Grunt 2 | . . 2 . Sentry 1 | . . 1 . Subdweller 8 | . . 8 . Best Kill Streak 4 | . 1 4 . Combat Bots Only 4 | . . 4 . Max Kills in Single Turn 1 | . 1 1 . Gunslinging . | . . . . Exploded 1 | . . 1 . Melee . | . . . . Uniques/NPCs Destroyed . | . . . . Combat | -11 -10 -10 -9 -------- Run | Yrd Mat Sub Scr Hostile Shots Fired 164 | . . 81 83 Missed 44 | . . 29 15 Hits 120 | . . 52 68 Melee 66 | . . . 66 Projectile 54 | . . 52 2 Critical Strikes 7 | . . 5 2 Damage Taken 1206 | . . 984 222 Core 265 | . . 173 92 Absorbed by Shields . | . . . . Core Remaining (%) 100 | 100 . . . Volleys Fired 89 | . 4 81 4 Largest 2 | . 2 2 2 Hottest 125 | . 40 125 58 Shots Fired 147 | . 8 134 5 Gun 116 | . 8 104 4 Cannon 27 | . . 26 1 Launcher 4 | . . 4 . Special . | . . . . Kinetic 63 | . 8 50 5 Thermal 71 | . . 71 . Explosive 4 | . . 4 . Electromagnetic 9 | . . 9 . Robot Hit Streak 13 | . 4 13 2 Robot Miss Streak 3 | . 1 3 1 Penetration Max . | . . . . Secondary Targets 1 | . . 1 . Max Gunslinging Chain 1 | . . 1 . Shots Hit Robots 76 | . 6 67 3 Core Hits 27 | . 2 25 . Critical Kills . | . . . . Critical Parts Destroyed . | . . . . Critical Strikes 1 | . . 1 . Destroy 1 | . . 1 . Melee Attacks . | . . . . Impact . | . . . . Slashing . | . . . . Piercing . | . . . . Sneak Attacks . | . . . . Combat Hostiles . | . . . . Follow-up Attacks . | . . . . Damage Inflicted 1434 | . 59 1332 43 Guns 1059 | . 59 981 19 Cannons 99 | . . 80 19 Explosions 271 | . . 271 . Melee . | . . . . Ramming 5 | . . . 5 Kinetic 346 | . 59 249 38 Thermal 734 | . . 734 . Explosive 271 | . . 271 . Electromagnetic 78 | . . 78 . Impact . | . . . . Slashing . | . . . . Piercing . | . . . . Highest Corruption . | . . . . Average Corruption . | . . . . Corruption Purged . | . . . . Corruption Blocked . | . . . . Overload Shots . | . . . . Overflow Damage . | . . . . Projectiles . | . . . . Explosions . | . . . . Melee . | . . . . Knockbacks . | . . . . Impact . | . . . . Kinetic . | . . . . Secondary . | . . . . Self-Inflicted Damage . | . . . . Shots . | . . . . Rammed 3 | . . . 3 Targets Rammed 4 | . . . 4 Kicked 1 | . . . 1 Crushed . | . . . . Highest Temperature 36 | . . 36 30 Average Temperature 19 | . . 22 13 Received Heat Transfer 165 | . . 165 . Siege Activations . | . . . . Martial Activations . | . . . . Shielding Activations . | . . . . Robots Disrupted . | . . . . Combat Hostiles . | . . . . Robots Corrupted . | . . . . Combat Hostiles . | . . . . Parts Fried . | . . . . Impact Corruptions . | . . . . Robots Melted . | . . . . Combat Hostiles . | . . . . Parts Melted . | . . . . Heat Transferred 985 | . . 985 . Parts Sabotaged . | . . . . Parts Stolen 5 | . . . 5 Parts Stripped . | . . . . Power Chain Reactions . | . . . . Alert | -11 -10 -10 -9 ------- Run | Yrd Mat Sub Scr Maximum Alert Level . | . . . . Low Security (%) 100 | 100 100 . . Level 1 . | . . . . Level 2 . | . . . . Level 3 . | . . . . Level 4 . | . . . . Level 5 . | . . . . High Security . | . . . . Max Security . | . . . . Peak Influence 7 | . 7 . . Initial . | . . . . Average . | . . . . Influence Increases 187 | . 7 180 . Destroy 0b10 Robot/C 140 | . . 140 . Destroy 0b10 Robot/NC 5 | . 5 . . Destroy Leader 12 | . 2 10 . Lose Combat Pursuer 30 | . . 30 . Influence Decreases 187 | . 7 180 . Time Decay 131 | . 7 124 . Lost Part 56 | . . 56 . Squads Dispatched 1 | . 1 . . Investigation . | . . . . Extermination . | . . . . Reinforcement 1 | . 1 . . Assault . | . . . . Garrison . | . . . . Intercept . | . . . . Searches Triggered . | . . . . Construction Impeded . | . . . . Haulers Reinforced . | . . . . Active Scanning Responses . | . . . . Cargo Convoy Interrupts . | . . . . Stealth | -11 -10 -10 -9 --------- Run | Yrd Mat Sub Scr Distress Signals . | . . . . Communications Jammed . | . . . . Distress Signals . | . . . . Times Spotted 35 | . 1 17 17 Peak Tracking Total 22 | . 1 4 22 Tactical Retreats 1 | . . 1 . Traps | -11 -10 -10 -9 ------- Run | Yrd Mat Sub Scr Traps Triggered 3 | . . 3 . Indirectly . | . . . . Trap Hack Attempts . | . . . . Triggered . | . . . . Disarmed . | . . . . Reprogrammed . | . . . . Reused . | . . . . Traps Extracted . | . . . . Installed . | . . . . Triggered . | . . . . Machines | -11 -10 -10 -9 ---------- Run | Yrd Mat Sub Scr Machines Disabled . | . . . . Max in Single Turn . | . . . . Machines Repaired . | . . . . Machines Dismantled . | . . . . Machines Sabotaged . | . . . . Overloaded Fab Kills . | . . . . Hacking | -11 -10 -10 -9 --------- Run | Yrd Mat Sub Scr Machines Accessed 2 | . . 2 . Terminals . | . . . . Fabricators . | . . . . Repair Stations . | . . . . Recycling Units . | . . . . Scanalyzers . | . . . . Garrison Access . | . . . . Total Hacks 3 | . . 3 . Successful 3 | . . 3 . Failed . | . . . . Catastrophic . | . . . . Database Lockouts . | . . . . Manual . | . . . . Terminals . | . . . . Fabricators . | . . . . Repair Stations . | . . . . Recycling Units . | . . . . Scanalyzers . | . . . . Garrison Access . | . . . . Terminal Hacks 3 | . . 3 . Record 1 | . . 1 . Open Door 1 | . . 1 . Release Object 1 | . . 1 . Fabricator Hacks . | . . . . Repair Station Hacks . | . . . . Recycling Unit Hacks . | . . . . Scanalyzer . | . . . . Garrison Access Hacks . | . . . . Unauthorized Hacks . | . . . . Terminals . | . . . . Fabricators . | . . . . Repair Stations . | . . . . Recycling Units . | . . . . Scanalyzers . | . . . . Garrison Access . | . . . . Data Cores Recovered . | . . . . Used . | . . . . Hacking Detections . | . . . . Full Trace Events . | . . . . Feedback Events . | . . . . Feedback Blocked . | . . . . Robot Schematics Acquired . | . . . . Robots Built . | . . . . Authchips . | . . . . Time . | . . . . Total Robot Build Rating . | . . . . Part Schematics Acquired . | . . . . Parts Built . | . . . . Authchips . | . . . . Time . | . . . . Total Part Build Rating . | . . . . Parts Repaired . | . . . . Time . | . . . . Parts Recycled . | . . . . Recycled Matter . | . . . . Retrieved Matter . | . . . . Retrieved Components . | . . . . Parts Scanalyzed . | . . . . Part Schematics Acquired . | . . . . Parts Damaged . | . . . . Bothacking | -11 -10 -10 -9 ------------ Run | Yrd Mat Sub Scr Used RIF Installer . | . . . . Robots Hacked . | . . . . Non-combat . | . . . . Combat . | . . . . Robot Hacks Applied . | . . . . Relay Couplers Released . | . . . . Fabnet Peak Effective % . | . . . . Robots Rewired . | . . . . Allies Hacked . | . . . . Hacks Repelled . | . . . . Allies | -11 -10 -10 -9 -------- Run | Yrd Mat Sub Scr Total Allies . | . . . . Largest Group . | . . . . Highest-Rated Group . | . . . . Highest-Rated Ally . | . . . . Total Orders . | . . . . Ally Attacks . | . . . . Total Damage . | . . . . Kills . | . . . . Allies Corrupted . | . . . . Allies Melted . | . . . . Intel | -11 -10 -10 -9 ------- Run | Yrd Mat Sub Scr Active Infowar (turns) 1422 | . . 907 515 Seismic 1422 | . . 907 515 Robot Analysis Total . | . . . . Derelict Logs Recovered 3 | . . 1 2 Drone Launches . | . . . . Drone Recoveries . | . . . . Exploration | -11 -10 -10 -9 ------------- Run | Yrd Mat Sub Scr Turns Passed 5147 | 74 265 1805 3003 Spaces Moved 1900 | 55 228 1000 617 Core 486 | 9 . 44 433 Treads 139 | . . 139 . Legs 137 | 46 14 . 77 Wheels 1138 | . 214 817 107 Hover . | . . . . Flight . | . . . . Fastest Speed 50 | 50 100 100 120 Average Speed 244 | 108 101 138 480 Slowest Speed 650 | 120 120 550 650 Overloaded Moves . | . . . . Propulsion Burnouts . | . . . . Robots Hopped . | . . . . Potential Cave-ins . | . . . . Cave-ins Triggered . | . . . . Exploration Rate (%) 35 | 5 33 45 59 Regions Visited 3 Branch Regions 2 Pre-discovered Areas . | . . . . Known Exits Taken . | . . . . Unknown Exits Taken 3 | 1 1 1 . Scrap Searched 7 | . . 2 5 Spaces Dug 6 | . . 6 . Terrain Destroyed 11 | . . 11 . Melee . | . . . . Projectile . | . . . . AOE 11 | . . 11 . Terrain Rammed . | . . . . Walls Destroyed . | . . . . Machines Disabled . | . . . . Actions | -11 -10 -10 -9 --------- Run | Yrd Mat Sub Scr Total 2251 | 66 253 1288 644 Wait 174 | . 14 158 2 Move 1897 | 54 227 999 617 Hop . | . . . . Pick Up 25 | 6 5 13 1 Fast Attach 16 | 6 . 4 6 Attach 8 | . . 8 . Detach . | . . . . Swap 11 | . 3 7 1 Drop 26 | . . 18 8 Fire 89 | . 4 81 4 Melee . | . . . . Ram 3 | . . . 3 Kick 1 | . . . 1 Crush . | . . . . Escape Stasis . | . . . . Rewire . | . . . . Trap . | . . . . Miscellaneous 1 | . . . 1 Route ------- -11/Scrapyard -10/Materials (discovered 3 exits: [*Mat] / [*Min] / *Sub) -10/Subcaves (discovered 4 exits: [*Mat x2] / *Scr x2) -9/Scraptown (discovered 1 exit: [*Fac]) History --------- Turn | Location | Event 9 | -11/Scrapyard | Discovered new exit (range 15) 75 | -11/Scrapyard | Entered Materials 76 | -10/Materials | Met a group of wandering Federalists 220 | -10/Materials | Discovered new exit (range 16) 307 | -10/Materials | Build established: Mutant 316 | -10/Materials | Discovered new exit (range 15) 320 | -10/Materials | Discovered new exit (range 11) 340 | -10/Materials | Entered Subcaves 341 | -10/Subcaves | Continued accompanying wandering Federalists (6) 341 | -10/Subcaves | Approached by a straggling Scientist 347 | -10/Subcaves | Learned Materials trap positions 353 | -10/Subcaves | Shifting Twisted Machinery released Sub. Laser 357 | -10/Subcaves | Shifting Twisted Machinery released Sub. Laser 486 | -10/Subcaves | Discovered new exit (range 13) 707 | -10/Subcaves | Shifting Twisted Machinery released Scrap Shield 713 | -10/Subcaves | Shifting Twisted Machinery released Sub. Beam Cannon 832 | -10/Subcaves | Discovered new exit (range 11) 844 | -10/Subcaves | Core integrity fell below 50% 1228 | -10/Subcaves | Found SUBCON Basin 1880 | -10/Subcaves | Scientist uncovered a shortcut to Scraptown 2145 | -10/Subcaves | Entered Scraptown 3013 | -9/Scraptown | Discovered new exit (range 11) 3442 | -9/Scraptown | Scanned Subdweller tech in exchange for log data 3462 | -9/Scraptown | Learned Factory emergency access door positions 3468 | -9/Scraptown | Learned location of 2 exits from Lower Caves 3676 | -9/Scraptown | Heard Great Nut preacher, LISTEN AND RECITE! 3676 | -9/Scraptown | Visited Spacefarers 3865 | -9/Scraptown | Visited Symbiants 4034 | -9/Scraptown | Visited Fellowship of the Rings 4625 | -9/Scraptown | Visited TADAMA 4697 | -9/Scraptown | Visited Bundlers 4945 | -9/Scraptown | Visited UFD Registry 4945 | -9/Scraptown | Registered with UFD as "Arcskull" 4999 | -9/Scraptown | Visited Junk Repository 5087 | -9/Scraptown | Visited Scrapoid Pod Storage 5093 | -9/Scraptown | Released subatomizers from SUBCON Basin 5104 | -9/Scraptown | Visited Infowarlord's Domain 5111 | -9/Scraptown | Found Active Sensor Suite 5114 | -9/Scraptown | Attacked by Scraptown defenders 5140 | -9/Scraptown | Core integrity fell below 20% 5148 | -9/Scraptown | Destroyed by 90-ETY(E) with Overtuned Barrage Gun Last Messages --------------- 05125_ KO-PYZ(r) follow-up attacks with Ripteeth. 05131_ BN-JZO(r) follow-up attacks with Ripteeth. 05131_ Battle Rifle ripped off. 05131_ BN-JZO(r) follow-up attacks with Ripteeth. 05135_ Slammed into KO-PYZ(r). 05135_ KO-PYZ(r) follow-up attacks with Ripteeth. 05138_ BN-JZO(r) follow-up attacks with Ripteeth. 05139_ Slammed into KO-PYZ(r). 05140_ YS-BOG(r) follow-up attacks with Ripteeth. 05144_ Slammed into YS-BOG(r). 05145_ YS-BOG(r) follow-up attacks with Ripteeth. 05145_ Penetrated by Slug. 05145_ YS-BOG(r) suffers critical hit (Destroy). Map ----- +----------------------------------------------------+ | ?????????????????????????????????????????????????? | | ?????????????????????????????????????????????????? | | ?????????????????????????????????????????????????? | | ?????????????????????????????????????????????????? | | ?????????????????????????????????????????????????? | | ?????????????????????????????????????????????????? | | ?????????????????????????????????????????????????? | | ?????????????????????????????????????????????????? | | ?????????????????????????????????????????????????? | | ?????????????????????????????????????????????????? | | ?????????????????????????????????????????????????? | | ???????????????????? ?????????????????????????? | | ??????????????????" ?????????????????????????? | | ??????????????????" "????????????????????????? | | ????????????????#"" "????????????????????????? | | ????????????????#"" "????????????????????????? | | ? ?????????????? ????????????????????????? | | " ?????????????? h "#???????????????????????? | | ??????????????#""j "#???????????????????????? | | ""????????????#"" "#???????????????????????? | | "" ????????????#"" "#???????????????????????? | | ????????????#"" "#???????????????????????? | | ?????????????#"" "###########?????????????? | | ################"" "##% #?????????????? | | """"""""""""""""""" "## #?????????????? | | """"""""""""""""""" EjpE@rr #?????????????? | | gj"##r #?????????????? | | g ggx"## #?????????????? | | pE"###########?????????????? | | & #???????????????????????? | | #??????????????????????? | | """ """"""""""" """""" ##??????????????????????? | | ### ########### ###### #???????????????????????? | | ? ??????? "???# #???????????????????????? | | #???? "#??# #???????????????????????? | | #?#" "#??# #???????????????????????? | | "" #?#" ! "#??# #???????????????????????? | | " #?# """""""#??# #???????????????????????? | | "" #?##########??# #???????????????????????? | | ? #?????????????? ???????????????????????? | | ? #?????????????? ???????????????????????? | | ? " #??????????????? ???????????????????????? | | ??"?"?????????????????? ?????????????????????????? | | ?????????????????????????????????????????????????? | | ?????????????????????????????????????????????????? | | ?????????????????????????????????????????????????? | | ?????????????????????????????????????????????????? | | ?????????????????????????????????????????????????? | | ?????????????????????????????????????????????????? | | ?????????????????????????????????????????????????? | +----------------------------------------------------+ Best States ------------- Heat Dissipation 25 Energy Generation 18 Energy Capacity 250 Matter Stores 300 Matter Capacity 300 Sight Range 16 Terrain Scan Density 10 Armor Coverage 150 Evasion (%) 55 Recoil Reduction 2 Item Schematics ----------------- None Robot Schematics ------------------ None Fabricated ------------ Nothing Repaired ---------- Nothing Alien Tech Used ----------------- None Achievements -------------- None Challenges ------------ None Game ------ Seed HeartZhirovMaul Manual? 0 Play Time 00:22:47 Cumulative 250.5 hours Start 2025.05.14 @ 01:45:16 End 2025.05.14 @ 02:10:38 Sessions 1 Manual Loads 0 Difficulty Rogue Special Mode None Game No. 370 Rogue 370 Adventurer 0 Explorer 0 Win Type - Total 1 Types 1/0/0/0/0/0/0/0/0/0 Lore% 59 Gallery% 61 Achievement% 43 Wizard Run 0 Options --------- Layout 1 ASCII 0 Keyboard 0 Movement Mouse Keybinds 0 Fullscreen 2 Font 24/Smallcaps Map View 50x35 Zoom Use 0% Tactical HUD 1 Map Filters NONE Filters NONE Steam 1 RUN: 05c1ff65-31c6-42e6-9026-d510a420d957